fUST/lending_fUST_20250920
["ID","MTS","AMOUNT","RATE_DAILY","PERIOD"]
[386492273,1758319856739,-480.0,0.0002276,2]
[386492275,1758319856748,-636.62,0.0002276,2]
[386492277,1758319856757,-12842.19582951,0.00022929,2]
[386492279,1758319856766,-500.0,0.00022942,2]
[386492281,1758319856776,-500.51967579,0.00022947,2]
[386492283,1758319856785,-420.0,0.00022954,2]
[386492285,1758319856794,-300.0,0.00022954,2]
[386492287,1758319856803,-300.0,0.00022954,2]
[386492289,1758319856812,-420.0,0.00022954,2]
[386492291,1758319856822,-300.0,0.00022954,2]
[386492293,1758319856831,-1680.0,0.00022955,2]
[386492295,1758319856841,-327.684,0.00022968,2]
[386492297,1758319856851,-160.0,0.00023,2]
[386492299,1758319856860,-160.0,0.00023,2]
[386492301,1758319856869,-160.0,0.00023,2]
[386492303,1758319856879,-160.0,0.00023,2]
[386492305,1758319856888,-233.43972884,0.00023,2]
[386492307,1758319856898,-848.13460282,0.00023,2]
[386492309,1758319856908,-217.99592756,0.00023,2]
[386492311,1758319856918,-1003.82579537,0.00023016,2]
[386492313,1758319856928,-2000.0,0.00023016,2]
[386492315,1758319856938,-1677.93630866,0.00023016,2]
[386492317,1758319856946,-2000.0,0.00023016,2]
[386492319,1758319856956,-480.0,0.00023023,2]
[386492321,1758319856965,-480.0,0.00023023,2]
[386492323,1758319856974,-480.0,0.00023023,2]
[386492325,1758319856984,-480.0,0.00023023,2]
[386492327,1758319856993,-480.0,0.00023025,2]
[386492329,1758319857003,-1990.35,0.00023025,2]
[386492331,1758319857012,-1562.16,0.00023026,2]
[386492333,1758319857021,-480.0,0.00023026,2]
[386492335,1758319857030,-480.0,0.00023026,2]
[386492337,1758319857038,-830.08,0.00023026,2]
[386492338,1758319857046,-867.16,0.00023026,2]
[386492340,1758319857057,-480.0,0.00023026,2]
[386492341,1758319857066,-480.0,0.00023026,2]
[386492342,1758319857075,-480.0,0.00023026,2]
[386492343,1758319857084,-480.0,0.00023026,2]
[386492344,1758319857156,-765.92,0.00023026,2]
[386492345,1758319857167,-480.0,0.00023026,2]
[386492346,1758319857176,-480.0,0.00023026,2]
[386492347,1758319857185,-480.0,0.00023026,2]
[386492348,1758319857194,-316.62,0.00023028,2]
[386492349,1758319857203,-480.0,0.00023028,2]
[386492350,1758319857212,-480.0,0.00023028,2]
[386492351,1758319857222,-480.0,0.00023028,2]
[386492352,1758319857231,-568.17,0.00023028,2]
[386492353,1758319857241,-480.0,0.00023028,2]
[386492354,1758319857250,-480.0,0.00023028,2]
[386492355,1758319857260,-295.58602464,0.00023028,2]
[386492356,1758319857269,-480.0,0.00023028,2]
[386492357,1758319857281,-480.0,0.00023028,2]
[386492358,1758319857290,-480.0,0.00023028,2]
[386492359,1758319857299,-480.0,0.00023028,2]
[386492360,1758319857308,-480.0,0.00023028,2]
[386492361,1758319857317,-480.0,0.00023028,2]
[386492362,1758319857326,-480.0,0.00023028,2]
[386492363,1758319857335,-480.0,0.00023028,2]
[386492364,1758319857345,-480.0,0.00023028,2]
[386492365,1758319857354,-658.81,0.00023028,2]
[386492366,1758319857364,-480.0,0.00023028,2]
[386492367,1758319857373,-480.0,0.00023028,2]
[386492368,1758319857382,-480.0,0.00023028,2]
[386492369,1758319857391,-480.0,0.00023028,2]
[386492370,1758319857401,-480.0,0.00023028,2]
[386492371,1758319857410,-1312.26,0.00023029,2]
[386492372,1758319857419,-480.0,0.00023029,2]
[386492373,1758319857429,-734.42,0.00023029,2]
[386492374,1758319857439,-1404.59,0.00023029,2]
[386492375,1758319857449,-480.0,0.00023029,2]
[386492376,1758319857459,-528.48,0.0002303,2]
[386492377,1758319857469,-480.0,0.0002303,2]
[386492378,1758319857478,-480.0,0.0002303,2]
[386492379,1758319857488,-647.46,0.0002303,2]
[386492380,1758319857497,-480.0,0.0002303,2]
[386492381,1758319857506,-232.83536113,0.0002303,2]
[386492382,1758319857517,-480.0,0.00023031,2]
[386492384,1758319857527,-480.0,0.00023031,2]
[386492385,1758319857536,-480.0,0.00023031,2]
[386492386,1758319857546,-480.0,0.00023031,2]
[386492387,1758319857555,-480.0,0.00023031,2]
[386492388,1758319857565,-660.38,0.00023033,2]
[386492389,1758319857575,-1326.05,0.00023033,2]
[386492390,1758319857586,-5870.08,0.00023033,2]
[386492391,1758319857596,-480.0,0.00023033,2]
[386492392,1758319857608,-686.68,0.00023034,2]
[386492393,1758319857619,-480.0,0.00023034,2]
[386492394,1758319857630,-636.62,0.00023034,2]
[386492395,1758319857642,-1680.0,0.00023062,2]
[386492396,1758319857664,-1000.0,0.00023068,2]
[386492397,1758319857681,-316.29247482,0.00023068,2]
[386492398,1758319857700,-1500.0,0.00023068,2]
[386492399,1758319857722,-1500.0,0.00023068,2]
[386492400,1758319857739,-577.46696187,0.00023068,2]
[386492401,1758319857757,-1500.0,0.00023068,2]
[386492402,1758319857774,-1500.0,0.00023068,2]
[386492403,1758319857788,-1516.89818563,0.00023068,2]
[386492404,1758319857808,-1500.0,0.00023068,2]
[386492405,1758319857827,-1500.0,0.00023068,2]
[386492406,1758319857844,-755.54918132,0.00023068,2]
[386492407,1758319857859,-1500.0,0.00023068,2]
[386492408,1758319857877,-276.51092135,0.00023068,2]
[386492409,1758319857893,-1500.0,0.00023068,2]
[386492410,1758319857909,-1500.0,0.00023068,2]
[386492411,1758319857924,-1500.0,0.00023068,2]
[386492412,1758319857938,-160.31778985,0.00023073,2]
[386492413,1758319857953,-500.0,0.00023073,2]
[386492414,1758319857968,-160.27739585,0.00023073,2]
[386492415,1758319857982,-500.0,0.00023073,2]
[386492416,1758319857997,-500.0,0.00023073,2]
[386492417,1758319858011,-160.33701291,0.00023073,2]
[386492418,1758319858026,-500.0,0.00023073,2]
[386492419,1758319858040,-500.0,0.00023073,2]
[386492420,1758319858055,-158.3648873,0.00023073,2]
[386492421,1758319858070,-160.31721884,0.00023073,2]
[386492422,1758319858085,-500.0,0.00023073,2]
[386492423,1758319858100,-500.0,0.00023073,2]
[386492424,1758319858114,-500.0,0.00023073,2]
[386492425,1758319858128,-500.0,0.00023073,2]
[386492426,1758319858143,-158.3207881,0.00023073,2]
[386492427,1758319858158,-500.0,0.00023073,2]
[386492428,1758319858172,-507.1544928,0.00023073,2]
[386492429,1758319858186,-500.0,0.00023073,2]
[386492431,1758319858201,-500.0,0.00023073,2]
[386492433,1758319858216,-500.0,0.00023073,2]
[386492436,1758319858231,-528.72444169,0.00023073,2]
[386492438,1758319858246,-500.0,0.00023073,2]
[386492441,1758319858260,-625.73094085,0.00023073,2]
[386492443,1758319858275,-1001.64190611,0.00023148,2]
[386492446,1758319858292,-155.0,0.00023223,2]
[386492448,1758319858306,-163.55172474,0.00023251,2]
[386492451,1758319858320,-480.0,0.00023297,2]
[386492453,1758319858335,-480.0,0.00023297,2]
[386492454,1758319858348,-480.0,0.00023297,2]
[386492456,1758319858359,-480.0,0.00023297,2]
[386492457,1758319858371,-480.0,0.00023299,2]
[386492459,1758319858380,-1990.35,0.00023299,2]
[386492461,1758319858390,-1562.16,0.000233,2]
[386492462,1758319858519,-480.0,0.000233,2]
[386492463,1758319858529,-354.91340885,0.000233,2]
[386492464,1758319858539,-830.08,0.000233,2]
[386492465,1758319858548,-867.16,0.000233,2]
[386492466,1758319858558,-480.0,0.000233,2]
[386492467,1758319858568,-480.0,0.000233,2]
[386492468,1758319858577,-480.0,0.000233,2]
[386492469,1758319858587,-480.0,0.000233,2]
[386492470,1758319858596,-765.92,0.000233,2]
[386492471,1758319858606,-480.0,0.000233,2]
[386492472,1758319858616,-480.0,0.000233,2]
[386492473,1758319858626,-327.96,0.000233,2]
[386492474,1758319858635,-153.83,0.00023302,2]
[386492475,1758319858645,-480.0,0.00023302,2]
[386492476,1758319858654,-480.0,0.00023302,2]
[386492477,1758319858664,-568.17,0.00023302,2]
[386492478,1758319858674,-480.0,0.00023302,2]
[386492479,1758319858683,-480.0,0.00023302,2]
[386492480,1758319858692,-480.0,0.00023302,2]
[386492481,1758319858701,-480.0,0.00023302,2]
[386492482,1758319858711,-480.0,0.00023302,2]
[386492483,1758319858720,-480.0,0.00023302,2]
[386492484,1758319858729,-480.0,0.00023302,2]
[386492485,1758319858738,-480.0,0.00023302,2]
[386492486,1758319858748,-480.0,0.00023302,2]
[386492487,1758319858757,-480.0,0.00023302,2]
[386492488,1758319858767,-480.0,0.00023302,2]
[386492489,1758319858777,-658.81,0.00023302,2]
[386492490,1758319858786,-480.0,0.00023302,2]
[386492491,1758319858795,-480.0,0.00023302,2]
[386492492,1758319858804,-480.0,0.00023302,2]
[386492493,1758319858814,-480.0,0.00023302,2]
[386492494,1758319858823,-480.0,0.00023302,2]
[386492495,1758319858833,-1312.26,0.00023303,2]
[386492496,1758319858842,-480.0,0.00023303,2]
[386492497,1758319858851,-734.42,0.00023303,2]
[386492498,1758319858860,-1404.59,0.00023303,2]
[386492499,1758319858870,-480.0,0.00023303,2]
[386492500,1758319858879,-528.48,0.00023304,2]
[386492501,1758319858889,-480.0,0.00023304,2]
[386492502,1758319858898,-480.0,0.00023304,2]
[386492503,1758319858907,-647.46,0.00023304,2]
[386492504,1758319858917,-480.0,0.00023304,2]
[386492505,1758319858927,-480.0,0.00023305,2]
[386492506,1758319858936,-480.0,0.00023305,2]
[386492507,1758319858945,-480.0,0.00023305,2]
[386492508,1758319858955,-480.0,0.00023305,2]
[386492509,1758319858963,-480.0,0.00023305,2]
[386492510,1758319858973,-660.38,0.00023307,2]
[386492511,1758319858982,-1326.05,0.00023307,2]
[386492512,1758319858991,-5870.08,0.00023307,2]
[386492513,1758319859001,-480.0,0.00023307,2]
[386492514,1758319859011,-686.68,0.00023308,2]
[386492515,1758319859020,-480.0,0.00023308,2]
[386492516,1758319859030,-636.62,0.00023308,2]
[386492517,1758319859039,-500.0,0.00023338,2]
[386492518,1758319859048,-500.0,0.00023338,2]
[386492519,1758319859057,-500.0,0.00023338,2]
[386492520,1758319859067,-500.0,0.00023338,2]
[386492521,1758319859076,-500.0,0.00023338,2]
[386492522,1758319859085,-448.25291393,0.00023338,2]
[386492523,1758319859095,-500.0,0.00023338,2]
[386492524,1758319859104,-500.0,0.00023338,2]
[386492525,1758319859113,-502.11397897,0.00023338,2]
[386492526,1758319859123,-500.0,0.00023338,2]
[386492527,1758319859133,-500.0,0.00023338,2]
[386492528,1758319859142,-500.0,0.00023338,2]
[386492529,1758319859151,-163.40023067,0.00023338,2]
[386492530,1758319859162,-500.0,0.00023338,2]
[386492531,1758319859172,-500.0,0.00023338,2]
[386492532,1758319859182,-502.34050976,0.00023338,2]
[386492533,1758319859191,-170.22276424,0.00023338,2]
[386492534,1758319859201,-500.0,0.00023338,2]
[386492535,1758319859211,-500.0,0.00023338,2]
[386492536,1758319859220,-500.0,0.00023338,2]
[386492537,1758319859229,-525.08351101,0.00023338,2]
[386492538,1758319859239,-500.0,0.00023338,2]
[386492539,1758319859248,-1000.0,0.0002349,2]
[386492540,1758319859257,-151.0,0.000235,7]
[386492541,1758319859267,-1500.0,0.00023564,2]
[386492542,1758319859278,-500.0,0.00023564,2]
[386492543,1758319859288,-480.0,0.00023571,2]
[386492544,1758319859298,-480.0,0.00023571,2]
[386492545,1758319859307,-480.0,0.00023571,2]
[386492546,1758319859316,-480.0,0.00023573,2]
[386492547,1758319859326,-1990.35,0.00023573,2]
[386492548,1758319859336,-1562.16,0.00023574,2]
[386492549,1758319859345,-480.0,0.00023574,2]
[386492550,1758319859355,-830.08,0.00023574,2]
[386492551,1758319859365,-867.16,0.00023574,2]
[386492552,1758319859375,-480.0,0.00023574,2]
[386492553,1758319859384,-480.0,0.00023574,2]
[386492554,1758319859394,-480.0,0.00023574,2]
[386492555,1758319859403,-480.0,0.00023574,2]
[386492556,1758319859413,-765.92,0.00023574,2]
[386492557,1758319859422,-480.0,0.00023574,2]
[386492558,1758319859431,-480.0,0.00023576,2]
[386492559,1758319859440,-480.0,0.00023576,2]
[386492560,1758319859450,-568.17,0.00023576,2]
[386492561,1758319859459,-480.0,0.00023576,2]
[386492562,1758319859468,-480.0,0.00023576,2]
[386492563,1758319859477,-480.0,0.00023576,2]
[386492564,1758319859487,-480.0,0.00023576,2]
[386492565,1758319859498,-480.0,0.00023576,2]
[386492566,1758319859507,-480.0,0.00023576,2]
[386492567,1758319859516,-480.0,0.00023576,2]
[386492568,1758319859526,-480.0,0.00023576,2]
[386492569,1758319859535,-480.0,0.00023576,2]
[386492570,1758319859545,-480.0,0.00023576,2]
[386492571,1758319859557,-658.81,0.00023576,2]
[386492572,1758319859567,-480.0,0.00023576,2]
[386492573,1758319859577,-480.0,0.00023576,2]
[386492574,1758319859586,-480.0,0.00023576,2]
[386492575,1758319859596,-480.0,0.00023576,2]
[386492576,1758319859606,-480.0,0.00023576,2]
[386492577,1758319859615,-1312.26,0.00023577,2]
[386492578,1758319859625,-480.0,0.00023577,2]
[386492579,1758319859634,-734.42,0.00023577,2]
[386492580,1758319859643,-1404.59,0.00023577,2]
[386492581,1758319859653,-528.48,0.00023578,2]
[386492582,1758319859662,-480.0,0.00023578,2]
[386492583,1758319859672,-480.0,0.00023578,2]
[386492584,1758319859683,-647.46,0.00023578,2]
[386492585,1758319859692,-480.0,0.00023578,2]
[386492586,1758319859701,-480.0,0.00023579,2]
[386492587,1758319859711,-480.0,0.00023579,2]
[386492588,1758319859720,-480.0,0.00023579,2]
[386492589,1758319859729,-480.0,0.00023579,2]
[386492590,1758319859739,-480.0,0.00023579,2]
[386492591,1758319859748,-660.38,0.00023581,2]
[386492592,1758319859758,-1326.05,0.00023581,2]
[386492593,1758319859767,-5870.08,0.00023581,2]
[386492594,1758319859777,-480.0,0.00023581,2]
[386492595,1758319859787,-686.68,0.00023582,2]
[386492596,1758319859796,-636.62,0.00023582,2]
[386492597,1758319859806,-160.0,0.00023615,2]
[386492598,1758319859815,-2000.0,0.00023616,2]
[386492599,1758319859824,-2000.0,0.00023616,2]
[386492600,1758319859834,-346.47448949,0.00023616,2]
[386492601,1758319859845,-2000.0,0.00023616,2]
[386492602,1758319859854,-2000.0,0.00023616,2]
[386492603,1758319859863,-2000.0,0.00023616,2]
[386492604,1758319859873,-2000.0,0.00023616,2]
[386492605,1758319859883,-2000.0,0.00023616,2]
[386492606,1758319859892,-2000.0,0.00023616,2]
[386492607,1758319859902,-2000.0,0.00023616,2]
[386492608,1758319859912,-1000.0,0.00023621,2]
[386492609,1758319859921,-1000.0,0.00023621,2]
[386492610,1758319859931,-1000.0,0.00023621,2]
[386492611,1758319859940,-1000.0,0.00023621,2]
[386492612,1758319859950,-1000.0,0.00023621,2]
[386492613,1758319859960,-1000.0,0.00023621,2]
[386492614,1758319859970,-1000.0,0.00023621,2]
[386492615,1758319859979,-1000.0,0.00023621,2]
[386492616,1758319859989,-501.06223542,0.00023621,2]
[386492617,1758319859998,-502.44212702,0.00023621,2]
[386492618,1758319860007,-1000.0,0.00023621,2]
[386492619,1758319860017,-1000.0,0.00023621,2]
[386492620,1758319860026,-502.13138404,0.00023621,2]
[386492621,1758319860036,-501.53919185,0.00023621,2]
[386492622,1758319860046,-590.59637423,0.00023845,2]
[386492623,1758319860056,-595.0,0.00023845,2]
[386492624,1758319860065,-480.0,0.00023845,2]
[386492625,1758319860074,-480.0,0.00023847,2]
[386492626,1758319860084,-1990.35,0.00023847,2]
[386492627,1758319860093,-1562.16,0.00023848,2]
[386492628,1758319860103,-480.0,0.00023848,2]
[386492629,1758319860112,-830.08,0.00023848,2]
[386492630,1758319860121,-867.16,0.00023848,2]
[386492631,1758319860131,-480.0,0.00023848,2]
[386492632,1758319860140,-480.0,0.00023848,2]
[386492633,1758319860149,-480.0,0.00023848,2]
[386492634,1758319860159,-480.0,0.00023848,2]
[386492635,1758319860168,-765.92,0.00023848,2]
[386492636,1758319860177,-480.0,0.00023848,2]
[386492637,1758319860187,-480.0,0.0002385,2]
[386492638,1758319860196,-480.0,0.0002385,2]
[386492639,1758319860206,-568.17,0.0002385,2]
[386492640,1758319860295,-480.0,0.0002385,2]
[386492641,1758319860305,-619.46,0.0002385,2]
[386492642,1758319860315,-480.0,0.0002385,2]
[386492643,1758319860326,-480.0,0.0002385,2]
[386492644,1758319860336,-480.0,0.0002385,2]
[386492645,1758319860347,-480.0,0.0002385,2]
[386492646,1758319860360,-480.0,0.0002385,2]
[386492647,1758319860370,-480.0,0.0002385,2]
[386492648,1758319860380,-658.81,0.0002385,2]
[386492649,1758319860389,-480.0,0.0002385,2]
[386492650,1758319860399,-480.0,0.0002385,2]
[386492651,1758319860409,-480.0,0.0002385,2]
[386492652,1758319860418,-497.78,0.0002385,2]
[386492653,1758319860428,-480.0,0.0002385,2]
[386492654,1758319860440,-1312.26,0.00023851,2]
[386492655,1758319860449,-480.0,0.00023851,2]
[386492656,1758319860464,-734.42,0.00023851,2]
[386492657,1758319860473,-1404.59,0.00023851,2]
[386492658,1758319860482,-528.48,0.00023852,2]
[386492659,1758319860492,-480.0,0.00023852,2]
[386492660,1758319860501,-480.0,0.00023852,2]
[386492661,1758319860511,-647.46,0.00023852,2]
[386492662,1758319860520,-515.51,0.00023852,2]
[386492663,1758319860530,-480.0,0.00023853,2]
[386492664,1758319860539,-480.0,0.00023853,2]
[386492665,1758319860549,-480.0,0.00023853,2]
[386492666,1758319860560,-480.0,0.00023853,2]
[386492667,1758319860569,-284.31,0.00023853,2]
[386492668,1758319860579,-660.38,0.00023855,2]
[386492669,1758319860589,-1326.05,0.00023855,2]
[386492670,1758319860599,-5870.08,0.00023855,2]
[386492671,1758319860614,-480.0,0.00023855,2]
[386492672,1758319860625,-686.68,0.00023856,2]
[386492673,1758319860635,-636.62,0.00023856,2]
[386492674,1758319860644,-1000.0,0.00023886,2]
[386492675,1758319860653,-1000.0,0.00023886,2]
[386492676,1758319860663,-1000.0,0.00023886,2]
[386492677,1758319860672,-502.0504132,0.00023886,2]
[386492678,1758319860682,-1000.32943356,0.00023886,2]
[386492679,1758319860694,-1000.0,0.00023886,2]
[386492680,1758319860703,-1000.0,0.00023886,2]
[386492681,1758319860714,-757.81611805,0.00023886,2]
[386492682,1758319860724,-210.89098011,0.00023886,2]
[386492683,1758319860734,-1000.0,0.00023886,2]
[386492684,1758319860744,-261.41750964,0.00023886,2]
[386492685,1758319860754,-533.82472049,0.00023886,2]
[386492686,1758319860764,-1000.0,0.00023886,2]
[386492687,1758319860775,-1088.86425231,0.00023886,2]
[386492688,1758319860785,-1000.0,0.00023886,2]
[386492689,1758319860794,-500.0,0.00023886,2]
[386492690,1758319860805,-156.73631051,0.00023936,2]
[386492691,1758319860815,-194.72792766,0.00024035,2]
[386492692,1758319860826,-1500.0,0.00024038,2]
[386492693,1758319860835,-724.21700015,0.00024056,2]
[386492694,1758319860845,-3542.51,0.000241,7]
[386492695,1758319860855,-480.0,0.00024119,2]
[386492696,1758319860866,-480.0,0.00024121,2]
[386492697,1758319860876,-1990.35,0.00024121,2]
[386492698,1758319860886,-1562.16,0.00024122,2]
[386492699,1758319860896,-480.0,0.00024122,2]
[386492700,1758319860906,-830.08,0.00024122,2]
[386492701,1758319860917,-867.16,0.00024122,2]
[386492702,1758319860926,-624.5,0.00024122,2]
[386492703,1758319860938,-480.0,0.00024122,2]
[386492704,1758319860947,-480.0,0.00024122,2]
[386492705,1758319860957,-765.92,0.00024122,2]
[386492706,1758319860967,-480.0,0.00024122,2]
[386492707,1758319860977,-480.0,0.00024124,2]
[386492708,1758319860986,-307.79,0.00024124,2]
[386492709,1758319860996,-568.17,0.00024124,2]
[386492710,1758319861006,-480.0,0.00024124,2]
[386492711,1758319861015,-480.0,0.00024124,2]
[386492712,1758319861025,-480.0,0.00024124,2]
[386492713,1758319861035,-480.0,0.00024124,2]
[386492714,1758319861044,-522.80763372,0.00024124,2]
[386492715,1758319861054,-204.49,0.00024124,2]
[386492716,1758319861064,-480.0,0.00024124,2]
[386492717,1758319861074,-658.81,0.00024124,2]
[386492718,1758319861083,-480.0,0.00024124,2]
[386492719,1758319861092,-480.0,0.00024124,2]
[386492720,1758319861102,-480.0,0.00024124,2]
[386492721,1758319861112,-281.29075223,0.00024124,2]
[386492722,1758319861122,-1312.26,0.00024125,2]
[386492723,1758319861131,-480.0,0.00024125,2]
[386492724,1758319861141,-734.42,0.00024125,2]
[386492725,1758319861150,-1404.59,0.00024125,2]
[386492726,1758319861159,-528.48,0.00024126,2]
[386492727,1758319861169,-480.0,0.00024126,2]
[386492728,1758319861179,-576.73,0.00024126,2]
[386492729,1758319861190,-647.46,0.00024126,2]
[386492730,1758319861200,-480.0,0.00024127,2]
[386492731,1758319861211,-480.0,0.00024127,2]
[386492732,1758319861222,-480.0,0.00024127,2]
[386492733,1758319861232,-585.10377088,0.00024127,2]
[386492734,1758319861242,-660.38,0.00024129,2]
[386492735,1758319861252,-1326.05,0.00024129,2]
[386492736,1758319861261,-5870.08,0.00024129,2]
[386492737,1758319861271,-480.0,0.00024129,2]
[386492738,1758319861287,-686.68,0.0002413,2]
[386492739,1758319861298,-636.62,0.0002413,2]
[386492740,1758319861308,-260.0,0.00024163,2]
[386492741,1758319861317,-2500.0,0.00024164,2]
[386492742,1758319861328,-178.03080736,0.00024164,2]
[386492743,1758319861338,-1000.0,0.00024164,2]
[386492744,1758319861347,-1144.80940494,0.00024164,2]
[386492745,1758319861356,-1628.82877778,0.00024164,2]
[386492746,1758319861366,-1000.0,0.00024164,2]
[386492747,1758319861375,-2500.0,0.00024164,2]
[386492748,1758319861385,-1500.0,0.00024164,2]
[386492749,1758319861394,-1000.0,0.00024164,2]
[386492750,1758319861404,-910.127271,0.00024168,2]
[386492751,1758319861414,-1000.57142924,0.00024168,2]
[386492752,1758319861423,-1500.0,0.00024168,2]
[386492753,1758319861433,-1503.17571614,0.00024168,2]
[386492754,1758319861442,-1500.0,0.00024168,2]
[386492755,1758319861452,-1500.0,0.00024168,2]
[386492756,1758319861461,-1511.57796991,0.00024168,2]
[386492757,1758319861471,-1500.0,0.00024168,2]
[386492758,1758319861480,-617.47927903,0.00024168,2]
[386492759,1758319861490,-1500.0,0.00024168,2]
[386492760,1758319861499,-977.0,0.00024273,2]
[386492761,1758319861509,-2158.0,0.00024273,2]
[386492762,1758319861518,-634.0,0.00024273,2]
[386492763,1758319861528,-1837.0,0.00024281,2]
[386492764,1758319861538,-192.93927548,0.00024317,2]
[386492765,1758319861548,-800.0,0.00024334,2]
[386492766,1758319861557,-800.0,0.00024376,2]
[386492767,1758319861566,-480.0,0.00024393,2]
[386492768,1758319861575,-562.60026314,0.00024395,2]
[386492769,1758319861585,-1990.35,0.00024395,2]
[386492770,1758319861594,-1562.16,0.00024396,2]
[386492771,1758319861604,-480.0,0.00024396,2]
[386492772,1758319861614,-830.08,0.00024396,2]
[386492773,1758319861624,-867.16,0.00024396,2]
[386492774,1758319861633,-480.0,0.00024396,2]
[386492775,1758319861643,-480.0,0.00024396,2]
[386492776,1758319861652,-765.92,0.00024396,2]
[386492777,1758319861662,-480.0,0.00024396,2]
[386492778,1758319861671,-480.0,0.00024398,2]
[386492779,1758319861680,-568.17,0.00024398,2]
[386492780,1758319861690,-480.0,0.00024398,2]
[386492781,1758319861699,-480.0,0.00024398,2]
[386492782,1758319861709,-480.0,0.00024398,2]
[386492783,1758319861718,-336.44,0.00024398,2]
[386492784,1758319861728,-362.21,0.00024398,2]
[386492785,1758319861737,-658.81,0.00024398,2]
[386492786,1758319861747,-480.0,0.00024398,2]
[386492787,1758319861758,-480.0,0.00024398,2]
[386492788,1758319861768,-241.04,0.00024398,2]
[386492789,1758319861779,-1312.26,0.00024399,2]
[386492790,1758319861789,-480.0,0.00024399,2]
[386492791,1758319861799,-734.42,0.00024399,2]
[386492792,1758319861809,-1404.59,0.00024399,2]
[386492793,1758319861819,-528.48,0.000244,2]
[386492794,1758319861830,-480.0,0.000244,2]
[386492795,1758319861839,-647.46,0.000244,2]
[386492796,1758319861848,-480.0,0.00024401,2]
[386492797,1758319861858,-480.0,0.00024401,2]
[386492798,1758319861867,-480.0,0.00024401,2]
[386492799,1758319861876,-528.50607787,0.00024403,2]
[386492800,1758319861886,-2114.02431149,0.00024403,2]
[386492801,1758319861895,-4751.79814614,0.00024403,2]
[386492802,1758319861905,-560.12727656,0.00024403,2]
[386492803,1758319861991,-2240.50910623,0.00024403,2]
[386492804,1758319862002,-5036.10434354,0.00024403,2]
[386492805,1758319862012,-761.04429241,0.00024403,2]
[386492806,1758319862022,-3041.13299247,0.00024403,2]
[386492807,1758319862031,-660.38,0.00024403,2]
[386492808,1758319862041,-1326.05,0.00024403,2]
[386492809,1758319862050,-5870.08,0.00024403,2]
[386492810,1758319862061,-239.93,0.00024403,2]
[386492811,1758319862070,-686.68,0.00024404,2]
[386492812,1758319862079,-636.62,0.00024404,2]
[386492813,1758319862089,-800.0,0.00024416,2]
[386492814,1758319862098,-800.0,0.00024421,2]
[386492815,1758319862107,-501.45917432,0.00024434,2]
[386492816,1758319862116,-1500.0,0.00024434,2]
[386492817,1758319862126,-1500.0,0.00024434,2]
[386492818,1758319862136,-1500.0,0.00024434,2]
[386492819,1758319862146,-500.54040616,0.00024434,2]
[386492820,1758319862156,-1500.0,0.00024434,2]
[386492821,1758319862166,-1500.0,0.00024434,2]
[386492822,1758319862177,-1500.0,0.00024434,2]
[386492823,1758319862186,-800.0,0.00024543,2]